[Event "Titled Tuesday Blitz April 19 Late 2022"]
[White "Keymer, Vincent"]
[Black "Leiva, Gianmarco"]
[WhiteFideId "12940690"]
[BlackFideId "3804399"]
[WhiteElo "2557"]
[BlackElo "2323"]
[Result "1-0"]
[Round "08"]
[TimeControl "180+1"]
[Date "2022.04.19"]
[WhiteClock "0:00:11"]
[BlackClock "0:00:01"]

1. d4 {[%clk 0:03:00]}  Nf6 {[%clk 0:02:59]} 2. c4 {[%clk 0:03:01]}  e6 {[%clk 0:02:58]} 3. Nf3 {[%clk 0:03:01]}  d5 {[%clk 0:02:57]} 4. Nc3 {[%clk 0:03:01]}  a6 {[%clk 0:02:57]} 5. cxd5 {[%clk 0:03:01]}  exd5 {[%clk 0:02:58]} 6. Bg5 {[%clk 0:03:01]}  Be6 {[%clk 0:02:58]} 7. e3 {[%clk 0:03:01]}  Nbd7 {[%clk 0:02:57]} 8. h3 {[%clk 0:02:59]}  c6 {[%clk 0:02:47]} 9. Bd3 {[%clk 0:02:58]}  Bd6 {[%clk 0:02:38]} 10. Bf4 {[%clk 0:02:58]}  Qb8 {[%clk 0:02:37]} 11. Qd2 {[%clk 0:02:56]}  h6 {[%clk 0:02:19]} 12. Bc2 {[%clk 0:02:20]}  Nb6 {[%clk 0:01:42]} 13. b3 {[%clk 0:02:17]}  O-O {[%clk 0:01:28]} 14. O-O {[%clk 0:02:13]}  Re8 {[%clk 0:01:15]} 15. Rfe1 {[%clk 0:02:10]}  Qd8 {[%clk 0:01:09]} 16. Bxd6 {[%clk 0:01:47]}  Qxd6 {[%clk 0:01:09]} 17. Ne5 {[%clk 0:01:48]}  a5 {[%clk 0:01:04]} 18. a4 {[%clk 0:01:42]}  Nfd7 {[%clk 0:00:52]} 19. f4 {[%clk 0:01:39]}  f6 {[%clk 0:00:49]} 20. Ng6 {[%clk 0:01:13]}  Nf8 {[%clk 0:00:16]} 21. Qd3 {[%clk 0:01:11]}  Nbd7 {[%clk 0:00:17]} 22. Nh4 {[%clk 0:01:09]}  Bf7 {[%clk 0:00:06]} 23. Rf1 {[%clk 0:01:04]}  Qe7 {[%clk 0:00:03]} 24. Rf3 {[%clk 0:01:01]}  c5 {[%clk 0:00:02]} 25. Rg3 {[%clk 0:00:57]}  Be6 {[%clk 0:00:01]} 26. Re1 {[%clk 0:00:50]}  Kh8 {[%clk 0:00:01]} 27. Bb1 {[%clk 0:00:43]}  cxd4 {[%clk 0:00:02]} 28. exd4 {[%clk 0:00:43]}  Qd6 {[%clk 0:00:02]} 29. Ng6+ {[%clk 0:00:41]}  Kg8 {[%clk 0:00:01]} 30. Nb5 {[%clk 0:00:36]}  Qb4 {[%clk 0:00:01]} 31. Ree3 {[%clk 0:00:31]}  Bf7 {[%clk 0:00:02]} 32. Nh4 {[%clk 0:00:27]}  Rxe3 {[%clk 0:00:02]} 33. Rxe3 {[%clk 0:00:26]}  Rc8 {[%clk 0:00:02]} 34. Nf5 {[%clk 0:00:24]}  Rc1+ {[%clk 0:00:03]} 35. Kh2 {[%clk 0:00:24]}  Bg6 {[%clk 0:00:02]} 36. h4 {[%clk 0:00:17]}  Bxf5 {[%clk 0:00:02]} 37. Qxf5 {[%clk 0:00:17]}  Qd2 {[%clk 0:00:02]} 38. Re8 {[%clk 0:00:12]}  Qd1 {[%clk 0:00:02]} 39. Qh7+ {[%clk 0:00:09]}  Kf7 {[%clk 0:00:02]} 40. Bg6+ {[%clk 0:00:10]}  Nxg6 {[%clk 0:00:01]} 41. Qg8# {[%clk 0:00:11]} 1-0


[Site "https://www.chess.com"]

[Event "Titled Tuesday Blitz April 19 Late 2022"]
[White "Kosteniuk, Alexandra"]
[Black "Martic, Ivan"]
[WhiteFideId "4128125"]
[BlackFideId "929301"]
[WhiteElo "2469"]
[BlackElo "2317"]
[Result "1-0"]
[Round "08"]
[TimeControl "180+1"]
[Date "2022.04.19"]
[WhiteClock "0:00:07"]
[BlackClock "0:00:07"]

1. e4 {[%clk 0:03:00]}  c5 {[%clk 0:02:59]} 2. c3 {[%clk 0:03:01]}  Nf6 {[%clk 0:02:57]} 3. e5 {[%clk 0:03:01]}  Nd5 {[%clk 0:02:57]} 4. Nf3 {[%clk 0:03:01]}  e6 {[%clk 0:02:56]} 5. d4 {[%clk 0:03:00]}  cxd4 {[%clk 0:02:56]} 6. cxd4 {[%clk 0:03:01]}  d6 {[%clk 0:02:56]} 7. Bc4 {[%clk 0:02:58]}  Nc6 {[%clk 0:02:55]} 8. O-O {[%clk 0:02:57]}  Be7 {[%clk 0:02:46]} 9. Qe2 {[%clk 0:02:57]}  O-O {[%clk 0:02:35]} 10. Rd1 {[%clk 0:02:57]}  Na5 {[%clk 0:02:17]} 11. Bd3 {[%clk 0:02:53]}  Nb4 {[%clk 0:02:08]} 12. Be4 {[%clk 0:02:52]}  d5 {[%clk 0:02:05]} 13. Bd3 {[%clk 0:02:45]}  Nxd3 {[%clk 0:01:56]} 14. Rxd3 {[%clk 0:02:45]}  Bd7 {[%clk 0:01:55]} 15. Nc3 {[%clk 0:02:44]}  b5 {[%clk 0:01:49]} 16. Qd1 {[%clk 0:02:05]}  Rc8 {[%clk 0:01:41]} 17. h4 {[%clk 0:01:52]}  b4 {[%clk 0:01:37]} 18. Ne2 {[%clk 0:01:46]}  Bb5 {[%clk 0:01:37]} 19. Rd2 {[%clk 0:01:44]}  Qc7 {[%clk 0:01:25]} 20. b3 {[%clk 0:01:37]}  Qc6 {[%clk 0:00:53]} 21. Ng3 {[%clk 0:01:33]}  Rc7 {[%clk 0:00:46]} 22. Bb2 {[%clk 0:01:31]}  Rfc8 {[%clk 0:00:45]} 23. Ng5 {[%clk 0:01:24]}  h6 {[%clk 0:00:41]} 24. Nf3 {[%clk 0:01:23]}  Qa6 {[%clk 0:00:41]} 25. Nh5 {[%clk 0:01:19]}  Kh8 {[%clk 0:00:37]} 26. Kh2 {[%clk 0:01:18]}  Bf8 {[%clk 0:00:31]} 27. Ne1 {[%clk 0:01:15]}  Nc6 {[%clk 0:00:29]} 28. Nc2 {[%clk 0:01:07]}  Qb6 {[%clk 0:00:23]} 29. Ne3 {[%clk 0:01:06]}  a5 {[%clk 0:00:22]} 30. Rc1 {[%clk 0:01:03]}  Ne7 {[%clk 0:00:22]} 31. Rdc2 {[%clk 0:01:01]}  Ng6 {[%clk 0:00:19]} 32. g3 {[%clk 0:00:56]}  Rc6 {[%clk 0:00:19]} 33. f4 {[%clk 0:00:53]}  R8c7 {[%clk 0:00:18]} 34. f5 {[%clk 0:00:48]}  exf5 {[%clk 0:00:17]} 35. Nxf5 {[%clk 0:00:49]}  Rxc2+ {[%clk 0:00:16]} 36. Rxc2 {[%clk 0:00:49]}  Rxc2+ {[%clk 0:00:14]} 37. Qxc2 {[%clk 0:00:50]}  Qe6 {[%clk 0:00:14]} 38. Ne3 {[%clk 0:00:50]}  Ba6 {[%clk 0:00:12]} 39. Nf4 {[%clk 0:00:45]}  Nxf4 {[%clk 0:00:11]} 40. gxf4 {[%clk 0:00:46]}  Qe7 {[%clk 0:00:11]} 41. Kg3 {[%clk 0:00:46]}  Qd8 {[%clk 0:00:12]} 42. Qc6 {[%clk 0:00:45]}  Bd3 {[%clk 0:00:11]} 43. Qxd5 {[%clk 0:00:41]}  Qc7 {[%clk 0:00:10]} 44. Nc4 {[%clk 0:00:34]}  Be7 {[%clk 0:00:10]} 45. Qa8+ {[%clk 0:00:30]}  Kh7 {[%clk 0:00:09]} 46. Qxa5 {[%clk 0:00:30]}  Qc8 {[%clk 0:00:09]} 47. d5 {[%clk 0:00:26]}  Qf5 {[%clk 0:00:09]} 48. Bc1 {[%clk 0:00:16]}  Bf1 {[%clk 0:00:09]} 49. Kf2 {[%clk 0:00:15]}  Qh3 {[%clk 0:00:09]} 50. Ne3 {[%clk 0:00:14]}  Bxh4+ {[%clk 0:00:09]} 51. Kg1 {[%clk 0:00:13]}  Be2 {[%clk 0:00:09]} 52. Ng2 {[%clk 0:00:04]}  Qg3 {[%clk 0:00:09]} 53. Qc5 {[%clk 0:00:04]}  Bf3 {[%clk 0:00:08]} 54. Qc2+ {[%clk 0:00:04]}  g6 {[%clk 0:00:08]} 55. e6 {[%clk 0:00:04]}  Bxg2 {[%clk 0:00:08]} 56. Qxg2 {[%clk 0:00:04]}  Qe1+ {[%clk 0:00:08]} 57. Qf1 {[%clk 0:00:05]}  Bf2+ {[%clk 0:00:07]} 58. Kg2 {[%clk 0:00:05]}  Qe4+ {[%clk 0:00:07]} 59. Kxf2 {[%clk 0:00:05]}  Qxd5 {[%clk 0:00:07]} 60. e7 {[%clk 0:00:05]}  Qc5+ {[%clk 0:00:07]} 61. Be3 {[%clk 0:00:05]}  Qxe7 {[%clk 0:00:08]} 62. Qc4 {[%clk 0:00:06]}  Qh4+ {[%clk 0:00:08]} 63. Ke2 {[%clk 0:00:06]}  Qh2+ {[%clk 0:00:08]} 64. Kd3 {[%clk 0:00:06]}  Kg8 {[%clk 0:00:07]} 65. Qc8+ {[%clk 0:00:06]}  Kh7 {[%clk 0:00:07]} 66. Qd7 {[%clk 0:00:07]}  Kg8 {[%clk 0:00:07]} 67. Qe8+ {[%clk 0:00:07]}  Kg7 {[%clk 0:00:07]} 68. Bd4+ {[%clk 0:00:07]} 1-0


[Site "https://www.chess.com"]

[Event "Titled Tuesday Blitz April 19 Late 2022"]
[White "Kostiukov, Alexandr"]
[Black "Marin Masis, Jose Esteban"]
[WhiteFideId "14108100"]
[BlackFideId "6508146"]
[WhiteElo "2202"]
[BlackElo "1710"]
[Result "1-0"]
[Round "08"]
[TimeControl "180+1"]
[Date "2022.04.19"]
[WhiteClock "0:01:39"]
[BlackClock "0:00:58"]

1. g3 {[%clk 0:02:46]}  d5 {[%clk 0:02:58]} 2. Bg2 {[%clk 0:02:46]}  e5 {[%clk 0:02:59]} 3. c4 {[%clk 0:02:45]}  Nf6 {[%clk 0:02:56]} 4. cxd5 {[%clk 0:02:45]}  Nxd5 {[%clk 0:02:56]} 5. Nf3 {[%clk 0:02:46]}  Nc6 {[%clk 0:02:56]} 6. O-O {[%clk 0:02:46]}  Bg4 {[%clk 0:02:56]} 7. Nc3 {[%clk 0:02:30]}  Nxc3 {[%clk 0:02:55]} 8. bxc3 {[%clk 0:02:30]}  Bc5 {[%clk 0:02:50]} 9. Qa4 {[%clk 0:02:06]}  Bd7 {[%clk 0:02:44]} 10. Qb5 {[%clk 0:02:01]}  Bd6 {[%clk 0:02:16]} 11. Qxb7 {[%clk 0:01:56]}  Rb8 {[%clk 0:02:05]} 12. Qa6 {[%clk 0:01:56]}  O-O {[%clk 0:02:01]} 13. d3 {[%clk 0:01:56]}  Rb6 {[%clk 0:01:54]} 14. Qc4 {[%clk 0:01:55]}  Be6 {[%clk 0:01:40]} 15. Qa4 {[%clk 0:01:49]}  Qb8 {[%clk 0:01:37]} 16. Be3 {[%clk 0:01:48]}  Bd7 {[%clk 0:01:21]} 17. Bxb6 {[%clk 0:01:47]}  axb6 {[%clk 0:01:14]} 18. Qc2 {[%clk 0:01:43]}  e4 {[%clk 0:01:05]} 19. Ng5 {[%clk 0:01:42]}  exd3 {[%clk 0:01:03]} 20. Qxd3 {[%clk 0:01:40]}  Ne5 {[%clk 0:00:58]} 21. Qxh7# {[%clk 0:01:39]} 1-0


[Site "https://www.chess.com"]

[Event "Titled Tuesday Blitz April 19 Late 2022"]
[White "Kovanova, Baira"]
[Black "Vujic, Mihailo"]
[WhiteFideId "4164083"]
[BlackFideId "918873"]
[WhiteElo "2190"]
[BlackElo "2256"]
[Result "0-1"]
[Round "08"]
[TimeControl "180+1"]
[Date "2022.04.19"]
[WhiteClock "0:00:01"]
[BlackClock "0:00:04"]

1. e4 {[%clk 0:02:59]}  e5 {[%clk 0:02:59]} 2. Nf3 {[%clk 0:02:58]}  Nc6 {[%clk 0:03:00]} 3. Bb5 {[%clk 0:02:59]}  f5 {[%clk 0:02:59]} 4. d3 {[%clk 0:02:56]}  fxe4 {[%clk 0:03:00]} 5. dxe4 {[%clk 0:02:56]}  Nf6 {[%clk 0:03:00]} 6. O-O {[%clk 0:02:55]}  Bc5 {[%clk 0:03:01]} 7. Nc3 {[%clk 0:02:54]}  d6 {[%clk 0:03:01]} 8. Be3 {[%clk 0:02:50]}  Bb6 {[%clk 0:02:59]} 9. Bc4 {[%clk 0:02:44]}  Bg4 {[%clk 0:02:57]} 10. h3 {[%clk 0:02:39]}  Bh5 {[%clk 0:02:56]} 11. a4 {[%clk 0:02:35]}  Nd4 {[%clk 0:02:49]} 12. Bxd4 {[%clk 0:02:33]}  Bxd4 {[%clk 0:02:47]} 13. Qd3 {[%clk 0:02:24]}  Bxc3 {[%clk 0:02:38]} 14. Qxc3 {[%clk 0:02:21]}  Nxe4 {[%clk 0:02:27]} 15. Qe3 {[%clk 0:02:20]}  Nf6 {[%clk 0:02:17]} 16. Rfe1 {[%clk 0:02:12]}  Qe7 {[%clk 0:02:12]} 17. Ng5 {[%clk 0:02:11]}  d5 {[%clk 0:01:50]} 18. Qxe5 {[%clk 0:02:09]}  Qxe5 {[%clk 0:01:49]} 19. Rxe5+ {[%clk 0:02:10]}  Kd7 {[%clk 0:01:48]} 20. Bxd5 {[%clk 0:01:53]}  Kd6 {[%clk 0:01:43]} 21. f4 {[%clk 0:01:49]}  Nxd5 {[%clk 0:01:41]} 22. g4 {[%clk 0:01:38]}  Nxf4 {[%clk 0:01:39]} 23. Re4 {[%clk 0:01:37]}  h6 {[%clk 0:01:28]} 24. Rd1+ {[%clk 0:01:26]}  Kc6 {[%clk 0:01:16]} 25. Ne6 {[%clk 0:01:06]}  Nxh3+ {[%clk 0:00:50]} 26. Kh2 {[%clk 0:01:06]}  Nf2 {[%clk 0:00:34]} 27. Rc4+ {[%clk 0:01:01]}  Kb6 {[%clk 0:00:33]} 28. Rd5 {[%clk 0:00:56]}  Nxg4+ {[%clk 0:00:24]} 29. Kg3 {[%clk 0:00:42]}  a5 {[%clk 0:00:12]} 30. Rxh5 {[%clk 0:00:39]}  Nf6 {[%clk 0:00:09]} 31. Rb5+ {[%clk 0:00:39]}  Ka7 {[%clk 0:00:07]} 32. Rxc7 {[%clk 0:00:32]}  Rab8 {[%clk 0:00:05]} 33. Rxa5+ {[%clk 0:00:19]}  Kb6 {[%clk 0:00:05]} 34. Rb5+ {[%clk 0:00:19]}  Ka7 {[%clk 0:00:04]} 35. Nd4 {[%clk 0:00:16]}  Ne4+ {[%clk 0:00:03]} 36. Kf4 {[%clk 0:00:16]}  Nd6 {[%clk 0:00:04]} 37. Nc6+ {[%clk 0:00:15]}  Ka6 {[%clk 0:00:03]} 38. Nb4+ {[%clk 0:00:15]}  Ka7 {[%clk 0:00:03]} 39. Nc6+ {[%clk 0:00:14]}  Ka6 {[%clk 0:00:03]} 40. Nxb8+ {[%clk 0:00:14]}  Rxb8 {[%clk 0:00:02]} 41. Rd5 {[%clk 0:00:13]}  Ne8 {[%clk 0:00:01]} 42. Re7 {[%clk 0:00:11]}  Nf6 {[%clk 0:00:01]} 43. Rd6+ {[%clk 0:00:11]}  b6 {[%clk 0:00:01]} 44. b4 {[%clk 0:00:09]}  Nh5+ {[%clk 0:00:01]} 45. Kg4 {[%clk 0:00:08]}  Nf6+ {[%clk 0:00:02]} 46. Kg3 {[%clk 0:00:06]}  Rc8 {[%clk 0:00:03]} 47. b5+ {[%clk 0:00:02]}  Ka5 {[%clk 0:00:03]} 48. Ra7+ {[%clk 0:00:02]}  Kb4 {[%clk 0:00:03]} 49. Rxb6 {[%clk 0:00:02]}  Rc3+ {[%clk 0:00:03]} 50. Kf2 {[%clk 0:00:02]}  Rxc2+ {[%clk 0:00:04]} 51. Kf3 {[%clk 0:00:02]}  Rc3+ {[%clk 0:00:03]} 52. Ke2 {[%clk 0:00:02]}  Rc2+ {[%clk 0:00:03]} 53. Kd1 {[%clk 0:00:02]}  Rc4 {[%clk 0:00:03]} 54. Rxg7 {[%clk 0:00:01]}  Ne4 {[%clk 0:00:03]} 55. Rc6 {[%clk 0:00:01]}  Nc3+ {[%clk 0:00:04]} 0-1


[Site "https://www.chess.com"]

[Event "Titled Tuesday Blitz April 19 Late 2022"]
[White "Mangialardo, Tiago Carvalho"]
[Black "Carrasco Miranda, Andres"]
[WhiteFideId "2130718"]
[BlackFideId "3405990"]
[WhiteElo "2052"]
[BlackElo "2177"]
[Result "0-1"]
[Round "08"]
[TimeControl "180+1"]
[Date "2022.04.19"]
[WhiteClock "0:00:58"]
[BlackClock "0:02:17"]

1. e4 {[%clk 0:02:59]}  c5 {[%clk 0:02:55]} 2. Nf3 {[%clk 0:02:59]}  d6 {[%clk 0:02:54]} 3. d4 {[%clk 0:02:58]}  cxd4 {[%clk 0:02:54]} 4. Nxd4 {[%clk 0:02:59]}  Nf6 {[%clk 0:02:53]} 5. Nc3 {[%clk 0:02:58]}  a6 {[%clk 0:02:53]} 6. Be3 {[%clk 0:02:58]}  e5 {[%clk 0:02:52]} 7. Nb3 {[%clk 0:02:54]}  Be6 {[%clk 0:02:52]} 8. Be2 {[%clk 0:02:53]}  Be7 {[%clk 0:02:52]} 9. Qd2 {[%clk 0:02:53]}  Nbd7 {[%clk 0:02:51]} 10. f3 {[%clk 0:02:53]}  h5 {[%clk 0:02:50]} 11. h3 {[%clk 0:02:51]}  h4 {[%clk 0:02:50]} 12. O-O-O {[%clk 0:02:49]}  Rc8 {[%clk 0:02:49]} 13. f4 {[%clk 0:01:58]}  exf4 {[%clk 0:02:47]} 14. Bxf4 {[%clk 0:01:58]}  Ne5 {[%clk 0:02:47]} 15. Bxe5 {[%clk 0:01:43]}  dxe5 {[%clk 0:02:48]} 16. Qg5 {[%clk 0:01:43]}  Nd7 {[%clk 0:02:26]} 17. Qxg7 {[%clk 0:01:42]}  Bf6 {[%clk 0:02:26]} 18. Rxd7 {[%clk 0:00:58]}  Bxd7 {[%clk 0:02:17]} 0-1


[Site "https://www.chess.com"]

[Event "Titled Tuesday Blitz April 19 Late 2022"]
[White "Mekhitarian, Krikor Sevag"]
[Black "Tregubov, Pavel V."]
[WhiteFideId "2107660"]
[BlackFideId "4115341"]
[WhiteElo "2598"]
[BlackElo "2341"]
[Result "1/2-1/2"]
[Round "08"]
[TimeControl "180+1"]
[Date "2022.04.19"]
[WhiteClock "0:00:04"]
[BlackClock "0:00:07"]

1. Nf3 {[%clk 0:03:00]}  Nf6 {[%clk 0:02:55]} 2. c4 {[%clk 0:03:00]}  c5 {[%clk 0:02:55]} 3. Nc3 {[%clk 0:02:51]}  Nc6 {[%clk 0:02:55]} 4. g3 {[%clk 0:02:50]}  d5 {[%clk 0:02:54]} 5. cxd5 {[%clk 0:02:50]}  Nxd5 {[%clk 0:02:55]} 6. Bg2 {[%clk 0:02:41]}  Nc7 {[%clk 0:02:55]} 7. O-O {[%clk 0:02:38]}  e5 {[%clk 0:02:55]} 8. d3 {[%clk 0:02:24]}  Be7 {[%clk 0:02:55]} 9. Nd2 {[%clk 0:02:22]}  Bd7 {[%clk 0:02:43]} 10. Nc4 {[%clk 0:02:22]}  f6 {[%clk 0:02:23]} 11. f4 {[%clk 0:02:21]}  b5 {[%clk 0:02:22]} 12. Ne3 {[%clk 0:02:19]}  O-O {[%clk 0:02:14]} 13. Ned5 {[%clk 0:02:11]}  Nxd5 {[%clk 0:02:08]} 14. Bxd5+ {[%clk 0:01:59]}  Kh8 {[%clk 0:02:07]} 15. Nxb5 {[%clk 0:02:00]}  Nb4 {[%clk 0:02:03]} 16. Bxa8 {[%clk 0:01:52]}  Qxa8 {[%clk 0:02:03]} 17. Nc3 {[%clk 0:01:51]}  Bh3 {[%clk 0:02:02]} 18. Rf2 {[%clk 0:01:49]}  c4 {[%clk 0:01:57]} 19. dxc4 {[%clk 0:01:13]}  Rd8 {[%clk 0:01:48]} 20. Bd2 {[%clk 0:00:38]}  Bc5 {[%clk 0:01:45]} 21. e3 {[%clk 0:00:38]}  exf4 {[%clk 0:01:15]} 22. gxf4 {[%clk 0:00:35]}  Nd3 {[%clk 0:01:03]} 23. Qf3 {[%clk 0:00:20]}  Qc8 {[%clk 0:00:46]} 24. Nd5 {[%clk 0:00:20]}  Nxf2 {[%clk 0:00:35]} 25. Kxf2 {[%clk 0:00:13]}  Bg4 {[%clk 0:00:34]} 26. Qe4 {[%clk 0:00:11]}  Bf5 {[%clk 0:00:33]} 27. Qf3 {[%clk 0:00:11]}  Bg4 {[%clk 0:00:27]} 28. Qg2 {[%clk 0:00:11]}  Qf5 {[%clk 0:00:22]} 29. Rg1 {[%clk 0:00:10]}  h5 {[%clk 0:00:21]} 30. h3 {[%clk 0:00:10]}  Qc2 {[%clk 0:00:20]} 31. hxg4 {[%clk 0:00:10]}  Qxd2+ {[%clk 0:00:20]} 32. Kf3 {[%clk 0:00:11]}  Qxg2+ {[%clk 0:00:17]} 33. Rxg2 {[%clk 0:00:10]}  hxg4+ {[%clk 0:00:16]} 34. Rxg4 {[%clk 0:00:09]}  a5 {[%clk 0:00:16]} 35. Rg2 {[%clk 0:00:08]}  Re8 {[%clk 0:00:15]} 36. b3 {[%clk 0:00:07]}  Kg8 {[%clk 0:00:15]} 37. Rd2 {[%clk 0:00:07]}  Kf7 {[%clk 0:00:15]} 38. e4 {[%clk 0:00:07]}  g5 {[%clk 0:00:14]} 39. fxg5 {[%clk 0:00:07]}  fxg5 {[%clk 0:00:15]} 40. Rh2 {[%clk 0:00:06]}  Kg6 {[%clk 0:00:15]} 41. Rg2 {[%clk 0:00:06]}  Rf8+ {[%clk 0:00:15]} 42. Ke2 {[%clk 0:00:07]}  Kh5 {[%clk 0:00:15]} 43. Ne3 {[%clk 0:00:05]}  Rf4 {[%clk 0:00:12]} 44. Rh2+ {[%clk 0:00:04]}  Kg6 {[%clk 0:00:12]} 45. Nd5 {[%clk 0:00:02]}  Rxe4+ {[%clk 0:00:12]} 46. Kf3 {[%clk 0:00:02]}  Rd4 {[%clk 0:00:10]} 47. Rh8 {[%clk 0:00:02]}  g4+ {[%clk 0:00:10]} 48. Kg2 {[%clk 0:00:02]}  Rd2+ {[%clk 0:00:10]} 49. Kg3 {[%clk 0:00:02]}  Rxa2 {[%clk 0:00:11]} 50. Kxg4 {[%clk 0:00:02]}  Rb2 {[%clk 0:00:11]} 51. Rb8 {[%clk 0:00:02]}  a4 {[%clk 0:00:09]} 52. Rb5 {[%clk 0:00:02]}  Bd4 {[%clk 0:00:06]} 53. bxa4 {[%clk 0:00:02]}  Rc2 {[%clk 0:00:07]} 54. Rb4 {[%clk 0:00:02]}  Bc5 {[%clk 0:00:06]} 55. Rb5 {[%clk 0:00:02]}  Rxc4+ {[%clk 0:00:07]} 56. Kf3 {[%clk 0:00:02]}  Bd4 {[%clk 0:00:06]} 57. Nf4+ {[%clk 0:00:02]}  Kf7 {[%clk 0:00:06]} 58. Nd3 {[%clk 0:00:02]}  Rxa4 {[%clk 0:00:06]} 59. Ke4 {[%clk 0:00:03]}  Bc3+ {[%clk 0:00:06]} 60. Kf5 {[%clk 0:00:03]}  Rd4 {[%clk 0:00:06]} 61. Rb7+ {[%clk 0:00:03]}  Ke8 {[%clk 0:00:06]} 62. Ne5 {[%clk 0:00:02]}  Rd5 {[%clk 0:00:07]} 63. Rb8+ {[%clk 0:00:03]}  Ke7 {[%clk 0:00:07]} 64. Rb7+ {[%clk 0:00:03]}  Kd8 {[%clk 0:00:07]} 65. Rd7+ {[%clk 0:00:03]}  Rxd7 {[%clk 0:00:07]} 66. Nxd7 {[%clk 0:00:04]} 1/2-1/2


[Site "https://www.chess.com"]

[Event "Titled Tuesday Blitz April 19 Late 2022"]
[White "Piliczewski, Bogusz"]
[Black "Lopez Idarraga, Daniel Eduardo"]
[WhiteFideId "1104144"]
[BlackFideId "4405501"]
[WhiteElo "1896"]
[BlackElo "2055"]
[Result "0-1"]
[Round "08"]
[TimeControl "180+1"]
[Date "2022.04.19"]
[WhiteClock "0:00:01"]
[BlackClock "0:01:40"]

1. d4 {[%clk 0:03:00]}  d5 {[%clk 0:02:59]} 2. Nf3 {[%clk 0:03:00]}  Nf6 {[%clk 0:02:58]} 3. Bf4 {[%clk 0:02:59]}  c5 {[%clk 0:02:57]} 4. c3 {[%clk 0:02:59]}  cxd4 {[%clk 0:02:56]} 5. cxd4 {[%clk 0:02:58]}  Nc6 {[%clk 0:02:56]} 6. Nc3 {[%clk 0:02:57]}  Bf5 {[%clk 0:02:50]} 7. e3 {[%clk 0:02:50]}  e6 {[%clk 0:02:49]} 8. Bb5 {[%clk 0:02:45]}  Bd6 {[%clk 0:02:49]} 9. Ne5 {[%clk 0:02:44]}  Rc8 {[%clk 0:02:46]} 10. Qa4 {[%clk 0:02:33]}  Bxe5 {[%clk 0:02:44]} 11. dxe5 {[%clk 0:02:27]}  Ne4 {[%clk 0:02:43]} 12. Nxe4 {[%clk 0:02:16]}  Bxe4 {[%clk 0:02:44]} 13. Qxa7 {[%clk 0:01:59]}  O-O {[%clk 0:02:41]} 14. Bxc6 {[%clk 0:01:45]}  bxc6 {[%clk 0:02:33]} 15. O-O {[%clk 0:01:42]}  c5 {[%clk 0:02:33]} 16. Qa4 {[%clk 0:01:30]}  c4 {[%clk 0:02:32]} 17. Qd1 {[%clk 0:01:24]}  Qb6 {[%clk 0:02:31]} 18. Qd2 {[%clk 0:01:20]}  Rb8 {[%clk 0:02:30]} 19. f3 {[%clk 0:01:15]}  Bd3 {[%clk 0:02:21]} 20. Rf2 {[%clk 0:01:15]}  Rb7 {[%clk 0:02:21]} 21. b3 {[%clk 0:01:06]}  Ra8 {[%clk 0:02:19]} 22. h4 {[%clk 0:00:54]}  h6 {[%clk 0:02:12]} 23. Kh2 {[%clk 0:00:37]}  Bg6 {[%clk 0:02:09]} 24. bxc4 {[%clk 0:00:34]}  dxc4 {[%clk 0:02:10]} 25. Rc1 {[%clk 0:00:28]}  Bd3 {[%clk 0:02:06]} 26. g4 {[%clk 0:00:19]}  Qa5 {[%clk 0:02:01]} 27. Qxa5 {[%clk 0:00:17]}  Rxa5 {[%clk 0:02:02]} 28. h5 {[%clk 0:00:14]}  Rba7 {[%clk 0:02:01]} 29. Ra1 {[%clk 0:00:11]}  Ra3 {[%clk 0:01:59]} 30. g5 {[%clk 0:00:09]}  hxg5 {[%clk 0:01:58]} 31. Bxg5 {[%clk 0:00:09]}  c3 {[%clk 0:01:57]} 32. Rg2 {[%clk 0:00:08]}  c2 {[%clk 0:01:47]} 33. Bf6 {[%clk 0:00:04]}  Rxa2 {[%clk 0:01:44]} 34. Rag1 {[%clk 0:00:01]}  c1=Q {[%clk 0:01:40]} 0-1


[Site "https://www.chess.com"]

[Event "Titled Tuesday Blitz April 19 Late 2022"]
[White "Ricaurte Lopez, Juan Carlos"]
[Black "Novikova, Galina"]
[WhiteFideId "3600327"]
[BlackFideId "4157095"]
[WhiteElo "2209"]
[BlackElo "1863"]
[Result "0-1"]
[Round "08"]
[TimeControl "180+1"]
[Date "2022.04.19"]
[WhiteClock "0:00:20"]
[BlackClock "0:01:04"]

1. e4 {[%clk 0:03:00]}  e6 {[%clk 0:03:00]} 2. d4 {[%clk 0:03:00]}  d5 {[%clk 0:03:01]} 3. exd5 {[%clk 0:03:00]}  exd5 {[%clk 0:03:01]} 4. Nf3 {[%clk 0:03:01]}  Nc6 {[%clk 0:03:01]} 5. c4 {[%clk 0:02:57]}  Nf6 {[%clk 0:02:57]} 6. Nc3 {[%clk 0:02:55]}  Bg4 {[%clk 0:02:54]} 7. cxd5 {[%clk 0:02:49]}  Nxd5 {[%clk 0:02:53]} 8. Bb5 {[%clk 0:02:45]}  Be7 {[%clk 0:02:48]} 9. O-O {[%clk 0:02:43]}  O-O {[%clk 0:02:47]} 10. Bxc6 {[%clk 0:02:42]}  bxc6 {[%clk 0:02:48]} 11. h3 {[%clk 0:02:42]}  Bh5 {[%clk 0:02:48]} 12. g4 {[%clk 0:02:41]}  Bg6 {[%clk 0:02:48]} 13. Ne5 {[%clk 0:02:42]}  Nxc3 {[%clk 0:02:39]} 14. bxc3 {[%clk 0:02:38]}  c5 {[%clk 0:02:40]} 15. Be3 {[%clk 0:02:21]}  cxd4 {[%clk 0:02:39]} 16. cxd4 {[%clk 0:02:20]}  Be4 {[%clk 0:02:34]} 17. f4 {[%clk 0:02:08]}  Rb8 {[%clk 0:02:29]} 18. Qd2 {[%clk 0:02:04]}  Ba8 {[%clk 0:02:26]} 19. Rac1 {[%clk 0:01:57]}  Qd5 {[%clk 0:02:24]} 20. Kh2 {[%clk 0:01:55]}  Bf6 {[%clk 0:01:40]} 21. Rc5 {[%clk 0:01:32]}  Qe4 {[%clk 0:01:38]} 22. Nd7 {[%clk 0:01:24]}  Rfe8 {[%clk 0:01:26]} 23. Nxb8 {[%clk 0:01:10]}  Rxb8 {[%clk 0:01:27]} 24. Rxc7 {[%clk 0:00:51]}  h6 {[%clk 0:01:26]} 25. Rc5 {[%clk 0:00:48]}  Re8 {[%clk 0:01:25]} 26. Re5 {[%clk 0:00:47]}  Bxe5 {[%clk 0:01:24]} 27. fxe5 {[%clk 0:00:47]}  Rc8 {[%clk 0:01:19]} 28. Qf2 {[%clk 0:00:39]}  Rc2 {[%clk 0:01:16]} 29. Bd2 {[%clk 0:00:38]}  Bd5 {[%clk 0:01:09]} 30. Rc1 {[%clk 0:00:21]}  Rxc1 {[%clk 0:01:04]} 31. Bxc1 {[%clk 0:00:20]}  Qh1+ {[%clk 0:01:04]} 0-1


[Site "https://www.chess.com"]